[Event "Early-Titled-Tuesday-Blitz-January-30-2024"]
[Site "Chess.com"]
[Date "2024.01.30"]
[Round "7"]
[White "SahibSinghKnight"]
[Black "adotand"]
[Result "1-0"]
[WhiteElo "2672"]
[BlackElo "2824"]
[TimeControl "180+1"]
[EndTime "9:17:20 PST"]
[Termination "SahibSinghKnight won by resignation"]

1. e4 {[%clk 0:02:55.8]} 1... c5 {[%clk 0:03:00]} 2. Nf3 {[%clk 0:02:55.2]} 2...
a6 {[%clk 0:03:00.5]} 3. c4 {[%clk 0:02:54.5]} 3... e6 {[%clk 0:03:00.2]} 4. Nc3
{[%clk 0:02:52.2]} 4... d6 {[%clk 0:02:59.4]} 5. d4 {[%clk 0:02:52.2]} 5... cxd4
{[%clk 0:03:00.3]} 6. Nxd4 {[%clk 0:02:51.2]} 6... Nf6 {[%clk 0:03:01]} 7. Be2
{[%clk 0:02:48.6]} 7... Be7 {[%clk 0:03:00.8]} 8. Be3 {[%clk 0:02:48.4]} 8...
O-O {[%clk 0:03:00]} 9. O-O {[%clk 0:02:49]} 9... Qc7 {[%clk 0:03:00.7]} 10. f4
{[%clk 0:02:48.4]} 10... b6 {[%clk 0:03:01.1]} 11. Rc1 {[%clk 0:02:47.5]} 11...
Bb7 {[%clk 0:03:01.7]} 12. Bf3 {[%clk 0:02:47.7]} 12... Nbd7 {[%clk 0:03:02.2]}
13. b4 {[%clk 0:02:29.5]} 13... Rac8 {[%clk 0:03:02.2]} 14. g4 {[%clk
0:02:28.6]} 14... h6 {[%clk 0:02:47.6]} 15. h4 {[%clk 0:02:28.2]} 15... h5
{[%clk 0:02:26.4]} 16. g5 {[%clk 0:02:10.2]} 16... Ng4 {[%clk 0:02:26.4]} 17.
Bxg4 {[%clk 0:02:10.6]} 17... hxg4 {[%clk 0:02:27.3]} 18. Qxg4 {[%clk
0:02:10.9]} 18... Rfe8 {[%clk 0:02:09.3]} 19. g6 {[%clk 0:01:58.1]} 19... Bf6
{[%clk 0:02:09.1]} 20. gxf7+ {[%clk 0:01:56.9]} 20... Kxf7 {[%clk 0:02:10]} 21.
f5 {[%clk 0:01:25.5]} 21... Nf8 {[%clk 0:01:57]} 22. fxe6+ {[%clk 0:01:19]}
22... Nxe6 {[%clk 0:01:57.9]} 23. Nd5 {[%clk 0:01:09.7]} 23... Qd8 {[%clk
0:01:53.4]} 24. Qh5+ {[%clk 0:00:53.3]} 24... Kg8 {[%clk 0:01:53.4]} 25. Nxf6+
{[%clk 0:00:52.7]} 25... gxf6 {[%clk 0:01:54.1]} 26. Qg6+ {[%clk 0:00:52.5]}
26... Kh8 {[%clk 0:01:52.3]} 27. Qh6+ {[%clk 0:00:51.3]} 27... Kg8 {[%clk
0:01:52.7]} 28. Rxf6 {[%clk 0:00:49.2]} 28... Ng7 {[%clk 0:01:46.2]} 29. Rg6
{[%clk 0:00:47.6]} 29... Rc7 {[%clk 0:01:43.5]} 30. Nf5 {[%clk 0:00:44.5]} 30...
Ree7 {[%clk 0:01:42.7]} 31. Bd4 {[%clk 0:00:39.3]} 31... Bxe4 {[%clk 0:01:26.2]}
32. Nxe7+ {[%clk 0:00:37.6]} 1-0

[Event "Early-Titled-Tuesday-Blitz-January-30-2024"]
[Site "Chess.com"]
[Date "2024.01.30"]
[Round "7"]
[White "dennisodessa"]
[Black "MFatigue"]
[Result "1-0"]
[WhiteElo "2615"]
[BlackElo "2461"]
[TimeControl "180+1"]
[EndTime "9:17:20 PST"]
[Termination "dennisodessa won by resignation"]

1. d4 {[%clk 0:03:00.9]} 1... d5 {[%clk 0:02:58.6]} 2. c4 {[%clk 0:03:00.9]}
2... c6 {[%clk 0:02:58.9]} 3. Nf3 {[%clk 0:03:00.3]} 3... Nf6 {[%clk 0:02:58.9]}
4. Nbd2 {[%clk 0:03:00.9]} 4... Bf5 {[%clk 0:02:58.1]} 5. Nh4 {[%clk 0:03:01.1]}
5... Bc8 {[%clk 0:02:44.4]} 6. e3 {[%clk 0:03:00.9]} 6... g5 {[%clk 0:02:40.3]}
7. Nhf3 {[%clk 0:03:00.1]} 7... h6 {[%clk 0:02:40.9]} 8. Bd3 {[%clk 0:02:58.2]}
8... Bg7 {[%clk 0:02:41.2]} 9. O-O {[%clk 0:02:57.6]} 9... O-O {[%clk
0:02:41.6]} 10. b3 {[%clk 0:02:58.1]} 10... Bg4 {[%clk 0:02:25.2]} 11. Bb2
{[%clk 0:02:56.7]} 11... Re8 {[%clk 0:02:23]} 12. Qc2 {[%clk 0:02:56.6]} 12...
Qd7 {[%clk 0:02:13.8]} 13. Ne5 {[%clk 0:02:55.8]} 13... Qc8 {[%clk 0:02:13.1]}
14. Nxg4 {[%clk 0:02:55.1]} 14... Qxg4 {[%clk 0:02:14]} 15. Bf5 {[%clk
0:02:49.4]} 15... Qh5 {[%clk 0:02:14]} 16. cxd5 {[%clk 0:02:23.8]} 16... cxd5
{[%clk 0:02:00.9]} 17. Qc7 {[%clk 0:02:22.6]} 17... e6 {[%clk 0:02:01.5]} 18.
Bd3 {[%clk 0:02:17.4]} 18... a6 {[%clk 0:01:47]} 19. Qxb7 {[%clk 0:02:12.3]}
19... Nbd7 {[%clk 0:01:47.6]} 20. Rac1 {[%clk 0:02:02.4]} 20... Bf8 {[%clk
0:01:44.4]} 21. Qc7 {[%clk 0:01:45.9]} 21... e5 {[%clk 0:01:16.9]} 22. dxe5
{[%clk 0:01:39.7]} 22... Ng4 {[%clk 0:01:16.5]} 23. Nf3 {[%clk 0:01:35.5]} 23...
Nc5 {[%clk 0:00:38.5]} 24. Bf5 {[%clk 0:01:13.3]} 24... Ne6 {[%clk 0:00:33.4]}
25. Bxe6 {[%clk 0:01:13.2]} 25... Rxe6 {[%clk 0:00:32]} 26. h3 {[%clk
0:01:13.9]} 1-0

[Event "Early-Titled-Tuesday-Blitz-January-30-2024"]
[Site "Chess.com"]
[Date "2024.01.30"]
[Round "7"]
[White "winniethepooh04"]
[Black "KorolDimitriy75"]
[Result "1-0"]
[WhiteElo "2532"]
[BlackElo "2347"]
[TimeControl "180+1"]
[EndTime "9:17:20 PST"]
[Termination "winniethepooh04 won on time"]

1. d4 {[%clk 0:03:00.9]} 1... Nf6 {[%clk 0:02:59.5]} 2. Nf3 {[%clk 0:03:00.2]}
2... g6 {[%clk 0:02:59.4]} 3. Bf4 {[%clk 0:03:00.7]} 3... c5 {[%clk 0:02:59.4]}
4. e3 {[%clk 0:03:00.9]} 4... Qb6 {[%clk 0:02:59.4]} 5. Qc1 {[%clk 0:02:57.8]}
5... d5 {[%clk 0:02:59.2]} 6. c3 {[%clk 0:02:58.2]} 6... Nc6 {[%clk 0:02:59.2]}
7. Nbd2 {[%clk 0:02:58.7]} 7... Bg7 {[%clk 0:02:59.1]} 8. h3 {[%clk 0:02:59.2]}
8... O-O {[%clk 0:02:58.9]} 9. Be2 {[%clk 0:02:58.7]} 9... Rd8 {[%clk 0:02:59]}
10. O-O {[%clk 0:02:58.7]} 10... Bf5 {[%clk 0:02:58.8]} 11. Nb3 {[%clk
0:02:56.9]} 11... Ne4 {[%clk 0:02:45.7]} 12. Rd1 {[%clk 0:02:48.8]} 12... Rac8
{[%clk 0:02:42.1]} 13. dxc5 {[%clk 0:02:48.3]} 13... Nxc5 {[%clk 0:02:43]} 14.
Nxc5 {[%clk 0:02:48.2]} 14... Qxc5 {[%clk 0:02:43.9]} 15. Bh2 {[%clk 0:02:43.1]}
15... h6 {[%clk 0:02:17.6]} 16. Qd2 {[%clk 0:02:38.3]} 16... a5 {[%clk
0:02:10.5]} 17. a4 {[%clk 0:02:35.4]} 17... e5 {[%clk 0:02:04.6]} 18. Bb5 {[%clk
0:02:35.3]} 18... Qe7 {[%clk 0:01:19.7]} 19. Qe2 {[%clk 0:02:30.7]} 19... Kh7
{[%clk 0:01:13.7]} 20. Rd2 {[%clk 0:02:30.5]} 20... Be4 {[%clk 0:00:34.3]} 21.
Rad1 {[%clk 0:02:30.2]} 21... Bxf3 {[%clk 0:00:15.6]} 22. Qxf3 {[%clk
0:02:31.1]} 22... d4 {[%clk 0:00:16.2]} 23. Bxc6 {[%clk 0:02:26.7]} 23... Rxc6
{[%clk 0:00:16.2]} 24. exd4 {[%clk 0:02:25.4]} 24... exd4 {[%clk 0:00:16.4]} 25.
cxd4 {[%clk 0:02:25.7]} 25... Rxd4 {[%clk 0:00:16.2]} 26. Bf4 {[%clk 0:02:20]}
26... Rxd2 {[%clk 0:00:14.2]} 27. Rxd2 {[%clk 0:02:19.1]} 27... Qe1+ {[%clk
0:00:12.5]} 28. Kh2 {[%clk 0:02:18.5]} 28... Rc1 {[%clk 0:00:11.3]} 29. Rd7
{[%clk 0:02:14.2]} 29... Qg1+ {[%clk 0:00:09.1]} 30. Kg3 {[%clk 0:02:14.5]}
30... Rc5 {[%clk 0:00:07.3]} 31. Rxf7 {[%clk 0:02:10.5]} 31... Rf5 {[%clk
0:00:04.5]} 32. Rxf5 {[%clk 0:02:09.5]} 32... gxf5 {[%clk 0:00:05.4]} 33. Qh5
{[%clk 0:02:05.4]} 33... Qb1 {[%clk 0:00:04.4]} 34. f3 {[%clk 0:01:57.4]} 1-0

[Event "Early-Titled-Tuesday-Blitz-January-30-2024"]
[Site "Chess.com"]
[Date "2024.01.30"]
[Round "7"]
[White "Zohid6"]
[Black "GOGIEFF"]
[Result "0-1"]
[WhiteElo "2862"]
[BlackElo "2993"]
[TimeControl "180+1"]
[EndTime "9:17:22 PST"]
[Termination "GOGIEFF won by checkmate"]

1. d4 {[%clk 0:03:00.9]} 1... Nf6 {[%clk 0:02:59.5]} 2. Nc3 {[%clk 0:03:01.4]}
2... d5 {[%clk 0:02:58.8]} 3. Bf4 {[%clk 0:03:01.6]} 3... a6 {[%clk 0:02:57.9]}
4. e3 {[%clk 0:03:02]} 4... Bf5 {[%clk 0:02:54.1]} 5. f3 {[%clk 0:03:01.3]} 5...
e6 {[%clk 0:02:52.1]} 6. g4 {[%clk 0:03:01]} 6... Bg6 {[%clk 0:02:52.5]} 7. h4
{[%clk 0:03:01.4]} 7... h5 {[%clk 0:02:52.3]} 8. g5 {[%clk 0:03:01.8]} 8... Nfd7
{[%clk 0:02:52.9]} 9. e4 {[%clk 0:03:02.4]} 9... c5 {[%clk 0:02:45]} 10. exd5
{[%clk 0:02:50.4]} 10... cxd4 {[%clk 0:02:45]} 11. Qxd4 {[%clk 0:02:50.1]} 11...
e5 {[%clk 0:02:44.4]} 12. Qe3 {[%clk 0:01:30]} 12... Bc5 {[%clk 0:02:39.2]} 13.
Qe2 {[%clk 0:01:29.2]} 13... O-O {[%clk 0:02:29.3]} 14. Be3 {[%clk 0:01:27.4]}
14... Qb6 {[%clk 0:02:29.5]} 15. Bxc5 {[%clk 0:01:25]} 15... Qxb2 {[%clk
0:02:29.5]} 16. Nd1 {[%clk 0:01:05.7]} 16... Qxa1 {[%clk 0:02:26.1]} 17. Bxf8
{[%clk 0:01:05.4]} 17... Nxf8 {[%clk 0:02:25.6]} 18. Nh3 {[%clk 0:01:00.3]}
18... Nbd7 {[%clk 0:02:24.1]} 19. Nf2 {[%clk 0:00:59.3]} 19... Rc8 {[%clk
0:02:20.3]} 20. c4 {[%clk 0:00:59.1]} 20... b5 {[%clk 0:02:20.3]} 21. Qb2 {[%clk
0:00:59.4]} 21... Qxb2 {[%clk 0:02:12.6]} 22. Nxb2 {[%clk 0:01:00.3]} 22... Nb6
{[%clk 0:02:07.2]} 23. cxb5 {[%clk 0:00:43.3]} 23... Rc2 {[%clk 0:02:01.5]} 24.
Nfd1 {[%clk 0:00:38.7]} 24... axb5 {[%clk 0:02:01.6]} 25. Bxb5 {[%clk
0:00:38.5]} 25... Nxd5 {[%clk 0:02:01.8]} 26. Ba4 {[%clk 0:00:29.6]} 26... Rg2
{[%clk 0:01:45.2]} 27. Bb3 {[%clk 0:00:29.4]} 27... Nf4 {[%clk 0:01:42.6]} 28.
Bc4 {[%clk 0:00:23]} 28... N8e6 {[%clk 0:01:39.6]} 29. a4 {[%clk 0:00:14]} 29...
Nd4 {[%clk 0:01:39]} 30. Rf1 {[%clk 0:00:08.9]} 30... Nc2# {[%clk 0:01:37.8]}
0-1

[Event "Early-Titled-Tuesday-Blitz-January-30-2024"]
[Site "Chess.com"]
[Date "2024.01.30"]
[Round "7"]
[White "Sjakkerntobi"]
[Black "Der_Balak_3Halak"]
[Result "1-0"]
[WhiteElo "2516"]
[BlackElo "2342"]
[TimeControl "180+1"]
[EndTime "9:17:23 PST"]
[Termination "Sjakkerntobi won by resignation"]

1. e4 {[%clk 0:03:00.9]} 1... c5 {[%clk 0:02:59]} 2. Nf3 {[%clk 0:03:00.9]} 2...
Nc6 {[%clk 0:02:57.8]} 3. d4 {[%clk 0:03:00.4]} 3... cxd4 {[%clk 0:02:58.7]} 4.
Nxd4 {[%clk 0:03:01.3]} 4... g6 {[%clk 0:02:58.6]} 5. Nc3 {[%clk 0:03:01.1]}
5... Bg7 {[%clk 0:02:59]} 6. Be3 {[%clk 0:03:01.9]} 6... Nf6 {[%clk 0:02:59.4]}
7. Bc4 {[%clk 0:03:02.6]} 7... O-O {[%clk 0:02:56.9]} 8. Bb3 {[%clk 0:03:02.5]}
8... d6 {[%clk 0:02:47.5]} 9. f3 {[%clk 0:03:01.5]} 9... Bd7 {[%clk 0:02:45.2]}
10. h4 {[%clk 0:02:59.4]} 10... h5 {[%clk 0:02:35.3]} 11. Qd2 {[%clk 0:02:58.6]}
11... a6 {[%clk 0:02:28.2]} 12. g4 {[%clk 0:02:57.8]} 12... Nxd4 {[%clk
0:02:21.6]} 13. Bxd4 {[%clk 0:02:57.6]} 13... hxg4 {[%clk 0:02:21.7]} 14. h5
{[%clk 0:02:57.1]} 14... e5 {[%clk 0:01:35.1]} 15. Be3 {[%clk 0:02:54.8]} 15...
Nxh5 {[%clk 0:01:34.3]} 16. O-O-O {[%clk 0:02:48.9]} 16... Be6 {[%clk
0:01:15.1]} 17. Nd5 {[%clk 0:02:44.5]} 17... Re8 {[%clk 0:00:42.8]} 18. Bh6
{[%clk 0:02:41.7]} 18... Kh7 {[%clk 0:00:15.7]} 19. Bxg7 {[%clk 0:02:38]} 19...
Kxg7 {[%clk 0:00:16.6]} 20. fxg4 {[%clk 0:02:38.6]} 20... Bxg4 {[%clk
0:00:15.6]} 21. Rdg1 {[%clk 0:02:38.1]} 21... Qd7 {[%clk 0:00:05.7]} 22. Ne3
{[%clk 0:02:20.1]} 22... f5 {[%clk 0:00:04.4]} 23. exf5 {[%clk 0:02:17.5]} 23...
Bxf5 {[%clk 0:00:03.2]} 24. Rxh5 {[%clk 0:02:15.3]} 24... Be6 {[%clk 0:00:02.7]}
25. Rhg5 {[%clk 0:02:04.6]} 25... Qf7 {[%clk 0:00:02.1]} 26. Qg2 {[%clk
0:01:58.3]} 26... Bxb3 {[%clk 0:00:01.3]} 27. Rxg6+ {[%clk 0:01:58.6]} 27... Kf8
{[%clk 0:00:01.8]} 28. axb3 {[%clk 0:01:53]} 28... Ke7 {[%clk 0:00:02.4]} 29.
Qxb7+ {[%clk 0:01:51.1]} 29... Kf8 {[%clk 0:00:02.6]} 30. Rg8+ {[%clk
0:01:45.7]} 30... Qxg8 {[%clk 0:00:02.2]} 31. Rf1+ {[%clk 0:01:45.9]} 1-0

[Event "Early-Titled-Tuesday-Blitz-January-30-2024"]
[Site "Chess.com"]
[Date "2024.01.30"]
[Round "7"]
[White "Ati1517"]
[Black "Arlo2024"]
[Result "1-0"]
[WhiteElo "2244"]
[BlackElo "2256"]
[TimeControl "180+1"]
[EndTime "9:17:27 PST"]
[Termination "Ati1517 won by checkmate"]

1. e4 {[%clk 0:03:00.9]} 1... e6 {[%clk 0:03:00.2]} 2. d4 {[%clk 0:03:00.4]}
2... d5 {[%clk 0:03:00.9]} 3. Nd2 {[%clk 0:03:01]} 3... dxe4 {[%clk 0:03:01.8]}
4. Nxe4 {[%clk 0:03:01.8]} 4... Nd7 {[%clk 0:03:02.1]} 5. Nf3 {[%clk 0:03:01.3]}
5... Ngf6 {[%clk 0:03:03]} 6. Bd3 {[%clk 0:03:01.5]} 6... Nxe4 {[%clk
0:03:03.2]} 7. Bxe4 {[%clk 0:03:01.4]} 7... Nf6 {[%clk 0:03:04.1]} 8. Bg5 {[%clk
0:02:59.9]} 8... Qd6 {[%clk 0:03:03.5]} 9. Bd3 {[%clk 0:02:58.8]} 9... Qb4+
{[%clk 0:03:00.9]} 10. c3 {[%clk 0:02:51.5]} 10... Qxb2 {[%clk 0:03:00.6]} 11.
Rc1 {[%clk 0:02:49.3]} 11... Qxa2 {[%clk 0:02:54.3]} 12. O-O {[%clk 0:02:48.5]}
12... Be7 {[%clk 0:02:52.1]} 13. Ne5 {[%clk 0:02:47.9]} 13... O-O {[%clk
0:02:45.3]} 14. f4 {[%clk 0:02:47.2]} 14... g6 {[%clk 0:02:38.8]} 15. Ng4 {[%clk
0:02:26.5]} 15... Nxg4 {[%clk 0:02:33]} 16. Qxg4 {[%clk 0:02:24.7]} 16... Bxg5
{[%clk 0:02:19.9]} 17. fxg5 {[%clk 0:02:23.7]} 17... e5 {[%clk 0:02:06.7]} 18.
Qh4 {[%clk 0:02:23.5]} 18... exd4 {[%clk 0:01:47.6]} 19. cxd4 {[%clk 0:02:19.5]}
19... c6 {[%clk 0:01:25.9]} 20. Bc4 {[%clk 0:02:16.6]} 20... Qa3 {[%clk
0:01:04.2]} 21. Rce1 {[%clk 0:02:06.1]} 21... Bf5 {[%clk 0:00:55]} 22. g4 {[%clk
0:02:01.9]} 22... Be6 {[%clk 0:00:16.8]} 23. Bxe6 {[%clk 0:01:49.9]} 23... fxe6
{[%clk 0:00:17.7]} 24. Rf6 {[%clk 0:01:49.6]} 24... Qc3 {[%clk 0:00:14.1]} 25.
Qf2 {[%clk 0:01:38.4]} 25... Rad8 {[%clk 0:00:12.6]} 26. Rexe6 {[%clk
0:01:36.8]} 26... Rxf6 {[%clk 0:00:09.9]} 27. gxf6 {[%clk 0:01:36.3]} 27... Qxd4
{[%clk 0:00:09.6]} 28. f7+ {[%clk 0:01:36.7]} 28... Kf8 {[%clk 0:00:09.1]} 29.
Re8+ {[%clk 0:01:36.5]} 29... Kg7 {[%clk 0:00:06.1]} 30. f8=Q# {[%clk
0:01:36.3]} 1-0

[Event "Early-Titled-Tuesday-Blitz-January-30-2024"]
[Site "Chess.com"]
[Date "2024.01.30"]
[Round "7"]
[White "Actuary44"]
[Black "Doublekk14"]
[Result "1-0"]
[WhiteElo "2488"]
[BlackElo "2265"]
[TimeControl "180+1"]
[EndTime "9:17:43 PST"]
[Termination "Actuary44 won on time"]

1. e4 {[%clk 0:03:00.9]} 1... c5 {[%clk 0:02:59.4]} 2. d4 {[%clk 0:03:00.7]}
2... cxd4 {[%clk 0:02:55.6]} 3. c3 {[%clk 0:03:01.3]} 3... d3 {[%clk 0:02:56.5]}
4. Bxd3 {[%clk 0:03:00.8]} 4... Nc6 {[%clk 0:02:56]} 5. f4 {[%clk 0:03:01.3]}
5... e6 {[%clk 0:02:54.7]} 6. Nf3 {[%clk 0:03:01.9]} 6... Bc5 {[%clk 0:02:40.2]}
7. Qe2 {[%clk 0:03:00.8]} 7... Nf6 {[%clk 0:02:37]} 8. Nbd2 {[%clk 0:02:59]}
8... a6 {[%clk 0:02:32]} 9. Nb3 {[%clk 0:02:59.1]} 9... Ba7 {[%clk 0:02:31.8]}
10. Be3 {[%clk 0:02:59.6]} 10... Bxe3 {[%clk 0:02:27.7]} 11. Qxe3 {[%clk
0:03:00.5]} 11... d5 {[%clk 0:02:27.4]} 12. e5 {[%clk 0:03:00.2]} 12... Ng4
{[%clk 0:02:25.9]} 13. Qe2 {[%clk 0:02:56.3]} 13... Qb6 {[%clk 0:02:23.7]} 14.
h3 {[%clk 0:02:53.8]} 14... Nh6 {[%clk 0:02:19.4]} 15. g4 {[%clk 0:02:52.1]}
15... Bd7 {[%clk 0:02:13.9]} 16. O-O-O {[%clk 0:02:49.9]} 16... O-O-O {[%clk
0:02:11.9]} 17. Rhe1 {[%clk 0:02:38.3]} 17... Kb8 {[%clk 0:01:53.3]} 18. Ng5
{[%clk 0:02:21.8]} 18... Na7 {[%clk 0:01:49.8]} 19. Nxh7 {[%clk 0:02:18.5]}
19... Bb5 {[%clk 0:01:48.2]} 20. Ng5 {[%clk 0:02:13.9]} 20... Bxd3 {[%clk
0:01:41.7]} 21. Qxd3 {[%clk 0:02:08.1]} 21... Nb5 {[%clk 0:01:41.5]} 22. Qe3
{[%clk 0:02:06.4]} 22... Qc7 {[%clk 0:01:24.1]} 23. Qc5 {[%clk 0:02:04.6]} 23...
Qxc5 {[%clk 0:01:18.9]} 24. Nxc5 {[%clk 0:02:05.5]} 24... Rc8 {[%clk 0:01:18.9]}
25. Nb3 {[%clk 0:01:58.2]} 25... Rc4 {[%clk 0:01:05.8]} 26. Rf1 {[%clk 0:01:52]}
26... Rhc8 {[%clk 0:01:02.7]} 27. Rd3 {[%clk 0:01:29.3]} 27... d4 {[%clk
0:00:55]} 28. Nd2 {[%clk 0:01:27.9]} 28... Ra4 {[%clk 0:00:37.8]} 29. c4 {[%clk
0:01:28.8]} 29... Raxc4+ {[%clk 0:00:14.8]} 30. Nxc4 {[%clk 0:01:28.5]} 30...
Rxc4+ {[%clk 0:00:15.1]} 31. Kd2 {[%clk 0:01:28.5]} 1-0

[Event "Early-Titled-Tuesday-Blitz-January-30-2024"]
[Site "Chess.com"]
[Date "2024.01.30"]
[Round "7"]
[White "ural58"]
[Black "NowInChess"]
[Result "1-0"]
[WhiteElo "2452"]
[BlackElo "2272"]
[TimeControl "180+1"]
[EndTime "9:17:47 PST"]
[Termination "ural58 won by resignation"]

1. e4 {[%clk 0:02:51.2]} 1... e6 {[%clk 0:02:59.3]} 2. d4 {[%clk 0:02:50.7]}
2... d5 {[%clk 0:02:59.9]} 3. Nc3 {[%clk 0:02:50.8]} 3... Nc6 {[%clk 0:02:58.8]}
4. e5 {[%clk 0:02:48.8]} 4... f6 {[%clk 0:02:58.8]} 5. Bb5 {[%clk 0:02:43.6]}
5... Bd7 {[%clk 0:02:59]} 6. Nf3 {[%clk 0:02:40.6]} 6... Qe7 {[%clk 0:02:59.2]}
7. Qe2 {[%clk 0:02:39.8]} 7... fxe5 {[%clk 0:02:48.3]} 8. Bxc6 {[%clk 0:02:39]}
8... bxc6 {[%clk 0:02:41.4]} 9. Nxe5 {[%clk 0:02:35.3]} 9... Nf6 {[%clk
0:02:38.5]} 10. Bg5 {[%clk 0:02:34.1]} 10... g6 {[%clk 0:02:13.2]} 11. O-O
{[%clk 0:02:26]} 11... Bg7 {[%clk 0:02:11.7]} 12. Rfe1 {[%clk 0:02:26]} 12...
O-O {[%clk 0:01:55.2]} 13. Nxd7 {[%clk 0:02:22.3]} 13... Qxd7 {[%clk 0:01:56.1]}
14. Qxe6+ {[%clk 0:02:22.4]} 14... Rf7 {[%clk 0:01:18.3]} 15. f3 {[%clk
0:02:04.1]} 15... Rb8 {[%clk 0:01:12.6]} 16. b3 {[%clk 0:02:01.3]} 16... Rb4
{[%clk 0:01:10.2]} 17. Qxd7 {[%clk 0:01:58.4]} 17... Nxd7 {[%clk 0:01:03.4]} 18.
Re8+ {[%clk 0:01:56.8]} 18... Rf8 {[%clk 0:00:57.9]} 19. Rxf8+ {[%clk
0:01:55.5]} 19... Kxf8 {[%clk 0:00:53.2]} 20. Ne2 {[%clk 0:01:55.2]} 20... Bxd4+
{[%clk 0:00:50.3]} 21. Nxd4 {[%clk 0:01:54.8]} 21... Rxd4 {[%clk 0:00:50.9]} 22.
Be3 {[%clk 0:01:55]} 22... Rb4 {[%clk 0:00:45.6]} 23. c3 {[%clk 0:01:54.8]}
23... Rb7 {[%clk 0:00:42.2]} 24. Re1 {[%clk 0:01:49]} 24... c5 {[%clk
0:00:21.1]} 25. Bg5 {[%clk 0:01:48]} 25... Rb8 {[%clk 0:00:20.5]} 26. Re7 {[%clk
0:01:46.6]} 26... Nb6 {[%clk 0:00:10.7]} 27. Rxh7 {[%clk 0:01:46.3]} 27... Re8
{[%clk 0:00:10.3]} 28. Rxc7 {[%clk 0:01:40]} 28... d4 {[%clk 0:00:10.4]} 29.
cxd4 {[%clk 0:01:35.1]} 29... cxd4 {[%clk 0:00:08.1]} 30. Rxa7 {[%clk 0:01:34]}
30... d3 {[%clk 0:00:05.9]} 31. Bh6+ {[%clk 0:01:32.9]} 31... Kg8 {[%clk
0:00:05.4]} 32. Rg7+ {[%clk 0:01:33.2]} 32... Kh8 {[%clk 0:00:05.6]} 33. Rxg6
{[%clk 0:01:33.8]} 33... Rd8 {[%clk 0:00:04.5]} 34. Rxb6 {[%clk 0:01:32.8]}
34... d2 {[%clk 0:00:04.7]} 35. Bxd2 {[%clk 0:01:32.7]} 35... Rxd2 {[%clk
0:00:05.6]} 36. a4 {[%clk 0:01:31.6]} 1-0

[Event "Early-Titled-Tuesday-Blitz-January-30-2024"]
[Site "Chess.com"]
[Date "2024.01.30"]
[Round "7"]
[White "stepanosinovsky"]
[Black "GMT4114"]
[Result "1-0"]
[WhiteElo "2383"]
[BlackElo "1949"]
[TimeControl "180+1"]
[EndTime "9:17:48 PST"]
[Termination "stepanosinovsky won on time"]

1. e4 {[%clk 0:03:00.9]} 1... e6 {[%clk 0:03:00]} 2. d4 {[%clk 0:02:57.9]} 2...
d5 {[%clk 0:03:00.1]} 3. Nc3 {[%clk 0:02:53.2]} 3... Bb4 {[%clk 0:02:59.4]} 4.
e5 {[%clk 0:02:52.5]} 4... Qd7 {[%clk 0:02:59.9]} 5. Qg4 {[%clk 0:02:49.8]} 5...
f5 {[%clk 0:02:59.4]} 6. Qg3 {[%clk 0:02:49.8]} 6... b6 {[%clk 0:02:42.5]} 7. h4
{[%clk 0:02:39.5]} 7... Ba6 {[%clk 0:02:32.8]} 8. h5 {[%clk 0:02:37.5]} 8...
Bxf1 {[%clk 0:02:31.8]} 9. Kxf1 {[%clk 0:02:38.4]} 9... Nc6 {[%clk 0:02:27.7]}
10. Nge2 {[%clk 0:02:36]} 10... O-O-O {[%clk 0:02:02.2]} 11. Qd3 {[%clk
0:02:31]} 11... Nge7 {[%clk 0:01:50.6]} 12. Nb5 {[%clk 0:02:16.8]} 12... Ng8
{[%clk 0:01:25.9]} 13. a4 {[%clk 0:01:50]} 13... Na5 {[%clk 0:01:14.6]} 14.
Nxa7+ {[%clk 0:01:45.1]} 14... Kb7 {[%clk 0:01:13.7]} 15. Nb5 {[%clk 0:01:44.2]}
15... c6 {[%clk 0:00:42.5]} 16. Na3 {[%clk 0:01:39.5]} 16... Nh6 {[%clk
0:00:35.2]} 17. Nb1 {[%clk 0:01:22.4]} 17... Be7 {[%clk 0:00:19.7]} 18. Nd2
{[%clk 0:01:19.8]} 18... g5 {[%clk 0:00:19.3]} 19. c3 {[%clk 0:01:19.3]} 19...
c5 {[%clk 0:00:09.7]} 20. dxc5 {[%clk 0:01:18.3]} 20... bxc5 {[%clk 0:00:05.9]}
21. b3 {[%clk 0:01:09.9]} 21... Ng4 {[%clk 0:00:03.8]} 22. Nf3 {[%clk
0:01:03.7]} 1-0

[Event "Early-Titled-Tuesday-Blitz-January-30-2024"]
[Site "Chess.com"]
[Date "2024.01.30"]
[Round "7"]
[White "emeli_chess"]
[Black "lacafi"]
[Result "1-0"]
[WhiteElo "2478"]
[BlackElo "2248"]
[TimeControl "180+1"]
[EndTime "9:17:49 PST"]
[Termination "emeli_chess won by checkmate"]

1. d4 {[%clk 0:03:00.9]} 1... f5 {[%clk 0:02:48.4]} 2. e4 {[%clk 0:03:00.3]}
2... fxe4 {[%clk 0:02:48]} 3. Nc3 {[%clk 0:03:00.7]} 3... Nf6 {[%clk 0:02:48.2]}
4. Bg5 {[%clk 0:03:00.9]} 4... Nc6 {[%clk 0:02:38.9]} 5. f3 {[%clk 0:02:55.6]}
5... exf3 {[%clk 0:02:35.1]} 6. Nxf3 {[%clk 0:02:55.1]} 6... g6 {[%clk
0:02:35.5]} 7. d5 {[%clk 0:02:37]} 7... Nb8 {[%clk 0:02:34.5]} 8. Bc4 {[%clk
0:02:31.9]} 8... Bg7 {[%clk 0:02:30]} 9. O-O {[%clk 0:02:29.5]} 9... O-O {[%clk
0:02:24.6]} 10. Qd2 {[%clk 0:02:21.5]} 10... d6 {[%clk 0:02:15.5]} 11. Rae1
{[%clk 0:02:18.6]} 11... Nbd7 {[%clk 0:02:07.9]} 12. Bh6 {[%clk 0:02:14.2]}
12... Nb6 {[%clk 0:01:55.2]} 13. Bb3 {[%clk 0:02:10.7]} 13... Bd7 {[%clk
0:01:33.6]} 14. Bxg7 {[%clk 0:02:07.9]} 14... Kxg7 {[%clk 0:01:33.5]} 15. Nd4
{[%clk 0:01:52]} 15... c5 {[%clk 0:01:30.7]} 16. dxc6 {[%clk 0:01:50.2]} 16...
bxc6 {[%clk 0:01:29.7]} 17. Ne6+ {[%clk 0:01:42.1]} 17... Bxe6 {[%clk
0:01:28.4]} 18. Rxe6 {[%clk 0:01:39.4]} 18... Nbd7 {[%clk 0:01:12.2]} 19. Ree1
{[%clk 0:01:06.6]} 19... Ne5 {[%clk 0:01:08.8]} 20. Ne2 {[%clk 0:01:02.8]} 20...
Nfd7 {[%clk 0:00:31.4]} 21. Nf4 {[%clk 0:00:55.5]} 21... Qb6+ {[%clk 0:00:29.6]}
22. Kh1 {[%clk 0:00:54.6]} 22... Rf6 {[%clk 0:00:27.8]} 23. Ne6+ {[%clk
0:00:52.4]} 23... Kh8 {[%clk 0:00:20.5]} 24. Qh6 {[%clk 0:00:48.1]} 24... Nf8
{[%clk 0:00:20.2]} 25. Qg7# {[%clk 0:00:47]} 1-0